Cogmind - Beta 10.1 --- EXPLORER MODE // 2020.10.15 @ 18:02:20 Player: Darlorth Result: Destroyed by 8R-AWN with 8R-AWN's Boregun Performance ------------- Evolutions (0) 0 Regions Visited (3) 600 Robots Destroyed (5) 25 Value Destroyed (97) 97 Prototype IDs (1) 20 Alien Tech Used (0) 0 Bonus (0) 0 TOTAL SCORE: 742 Bonus ------- None Cogmind --------- Core Integrity 0/250 Matter 300/300 Energy 98/100 System Corruption 4% Temperature Cool (1) Movement Walking (120) Location -10/Exiles Parts ------- > --- POWER (2) -------- (None) > --- PROPULSION (2) --- Aluminum Leg > --- UTILITY (2) ------ Signal Interpreter > --- WEAPON (2) ------- (None) > --- INVENTORY (4) ---- Experimental Sensor Array Power Shielding Peak State ------------ > --- POWER ------------ Light Nuclear Core Makeshift Power Source > --- PROPULSION ------- Makeshift Leg Makeshift Leg > --- UTILITY ---------- Experimental Sensor Array Signal Interpreter > --- WEAPON ----------- EM Pulse Gun Light Assault Rifle > --- INVENTORY -------- Ion Engine Aluminum Leg Improved Heat Sink Power Shielding [Rating: 24] Favorites ----------- Power Ion Engine Engine Ion Engine Power Core Light Nuclear Core Propulsion Aluminum Leg Leg Aluminum Leg Utility Signal Interpreter Device Experimental Sensor Array Processor Signal Interpreter Protection Power Shielding Weapon Light Assault Rifle Energy Gun EM Pulse Gun Ballistic Gun Light Assault Rifle Build | -11 -10 -10 -10 ------- Run | Scr Mat Min Exi Slots Evolved 1 | . 1 . . Power 1 | . 1 . . Propulsion . | . . . . Utility . | . . . . Weapon . | . . . . Parts Attached 20 | 5 6 1 8 Power 5 | 1 2 . 2 Engine 4 | 1 1 . 2 Core 1 | . 1 . . Reactor . | . . . . Propulsion 6 | 2 . . 4 Treads . | . . . . Leg 6 | 2 . . 4 Wheel . | . . . . Hover . | . . . . Flight . | . . . . Utility 6 | 2 2 1 1 Device 3 | 1 . 1 1 Storage . | . . . . Processor 2 | . 2 . . Hackware . | . . . . Protection 1 | 1 . . . Artifact . | . . . . Weapon 3 | . 2 . 1 Energy Gun 2 | . 1 . 1 Energy Cannon . | . . . . Ballistic Gun 1 | . 1 . . Ballistic Cannon . | . . . . Launcher . | . . . . Special Weapon . | . . . . Impact Weapon . | . . . . Slashing Weapon . | . . . . Piercing Weapon . | . . . . Special Melee Weapon . | . . . . Unidentified Prototypes 1 | . . 1 . Parts Lost 9 | . . . 9 Power 3 | . . . 3 Propulsion 2 | . . . 2 Utility 1 | . . . 1 Weapon 3 | . . . 3 Highest Loss Streak 9 | . . . 9 Average Slot Usage (%) 96 | . 90 100 97 Engine 12 | . 12 12 12 Core 10 | . 8 12 11 Leg 24 | . 25 25 24 Device 6 | . 6 1 11 Processor 15 | . 11 23 12 Protection 1 | . 6 . . Energy Gun 10 | . 9 12 11 Ballistic Gun 10 | . 9 12 11 Naked Turns . | . . . . Heaviest Build 15 | 7 15 14 14 Greatest Support 40 | 20 20 20 40 Greatest Overweight (x) 2 | 2 . . 1 Average Overweight (x) . | . . . . Largest Inventory Capacity 4 | 4 4 4 4 Average Capacity 4 | 4 4 4 4 Most Carried 4 | 3 4 4 4 Average Carried 3 | 1 3 3 3 Final Capacity 4 | 4 4 4 4 Final Carried 4 | 3 4 3 2 Class Distribution -------------------- 93% | Hacker-Mutant 6% | Scavenger-Mutant Dominant Class ---------------- Hacker-Mutant | -10/Materials Hacker-Mutant | -10/Mines Hacker-Mutant | -10/Exiles Resources | -11 -10 -10 -10 ----------- Run | Scr Mat Min Exi Matter Collected 372 | 250 67 . 55 Remotely . | . . . . Salvage Created 158 | . 123 . 35 Parts 5 | . 5 . . Haulers Intercepted . | . . . . Recyclers Shooed . | . . . . Parts Field Recycled . | . . . . Retrieved Matter . | . . . . Parts Self-Destructed . | . . . . Prevented . | . . . . Kills | -11 -10 -10 -10 ------- Run | Scr Mat Min Exi Combat Hostiles Destroyed 4 | . 2 . 2 Guns 4 | . 2 . 2 Classes Destroyed 3 | . 2 . 1 Watcher 1 | . 1 . . Grunt 2 | . 2 . . Assembled 2 | . . . 2 Best Kill Streak 2 | . 2 . 2 Combat Bots Only 2 | . 2 . 2 Max Kills in Single Turn 1 | . 1 . 1 Gunslinging . | . . . . Exploded . | . . . . Melee . | . . . . Uniques/NPCs Destroyed . | . . . . Combat | -11 -10 -10 -10 -------- Run | Scr Mat Min Exi Damage Taken 798 | . 56 . 742 Core 257 | . 24 . 233 Absorbed by Shields . | . . . . Core Remaining (%) 100 | 100 . . . Volleys Fired 18 | . 7 . 11 Largest 2 | . 2 . 2 Hottest 60 | . 60 . 60 Shots Fired 34 | . 14 . 20 Gun 34 | . 14 . 20 Cannon . | . . . . Launcher . | . . . . Special . | . . . . Kinetic 16 | . 7 . 9 Thermal 2 | . . . 2 Explosive . | . . . . Electromagnetic 16 | . 7 . 9 Robot Hit Streak 11 | . 9 . 11 Robot Miss Streak 1 | . 1 . 1 Penetration Max . | . . . . Secondary Targets 1 | . . . 1 Max Gunslinging Chain 1 | . . . 1 Shots Hit Robots 28 | . 11 . 17 Core Hits 13 | . 5 . 8 Critical Hits . | . . . . Critical Kills . | . . . . Critical Parts Destroyed . | . . . . Melee Attacks . | . . . . Impact . | . . . . Slashing . | . . . . Piercing . | . . . . Sneak Attacks . | . . . . Combat Hostiles . | . . . . Follow-up Attacks . | . . . . Damage Inflicted 255 | . 131 . 124 Guns 247 | . 131 . 116 Cannons . | . . . . Explosions . | . . . . Melee . | . . . . Ramming 8 | . . . 8 Kinetic 103 | . 42 . 61 Thermal 10 | . . . 10 Explosive . | . . . . Electromagnetic 134 | . 89 . 45 Impact . | . . . . Slashing . | . . . . Piercing . | . . . . Highest Corruption 4 | . . . 4 Average Corruption 2 | . . . 2 Corruption Purged . | . . . . Effects 1 | . . . 1 Targeting Errors 1 | . . . 1 Overload Shots . | . . . . Overflow Damage . | . . . . Projectiles . | . . . . Explosions . | . . . . Melee . | . . . . Knockbacks . | . . . . Impact . | . . . . Kinetic . | . . . . Secondary . | . . . . Self-Inflicted Damage 4 | . . . 4 Shots . | . . . . Rammed 1 | . . . 1 Targets Rammed 1 | . . . 1 Kicked . | . . . . Crushed . | . . . . Highest Temperature 91 | . 91 . 53 Average Temperature 33 | . 49 . 19 Received Heat Transfer 176 | . 51 . 125 Siege Activations . | . . . . Robots Corrupted . | . . . . Combat Hostiles . | . . . . Parts Fried . | . . . . Impact Corruptions . | . . . . Robots Melted . | . . . . Combat Hostiles . | . . . . Parts Melted . | . . . . Heat Transferred 25 | . . . 25 Parts Sabotaged . | . . . . Parts Stolen . | . . . . Parts Stripped . | . . . . Power Chain Reactions . | . . . . Missiles Intercepted . | . . . . Alert | -11 -10 -10 -10 ------- Run | Scr Mat Min Exi Peak Influence 75 | . 75 20 . Initial 20 | . . 20 . Average 30 | . 51 20 . Maximum Alert Level . | . . . . Low Security (%) 100 | 100 100 100 . Level 1 . | . . . . Level 2 . | . . . . Level 3 . | . . . . Level 4 . | . . . . Level 5 . | . . . . High Security . | . . . . Max Security . | . . . . Squads Dispatched . | . . . . Investigation . | . . . . Extermination . | . . . . Reinforcement . | . . . . Assault . | . . . . Garrison . | . . . . Intercept . | . . . . Construction Impeded . | . . . . Haulers Reinforced . | . . . . Stealth | -11 -10 -10 -10 --------- Run | Scr Mat Min Exi Distress Signals . | . . . . Communications Jammed . | . . . . Distress Signals . | . . . . Times Spotted 18 | . 5 . 13 Peak Tracking Total 12 | . 2 . 12 Tactical Retreats 2 | . 1 . 1 Traps | -11 -10 -10 -10 ------- Run | Scr Mat Min Exi Traps Triggered . | . . . . Indirectly . | . . . . Trap Hack Attempts . | . . . . Triggered . | . . . . Disarmed . | . . . . Reprogrammed . | . . . . Reused . | . . . . Traps Extracted . | . . . . Installed . | . . . . Triggered . | . . . . Machines | -11 -10 -10 -10 ---------- Run | Scr Mat Min Exi Machines Disabled 2 | . . . 2 Max in Single Turn 1 | . . . 1 Machines Sabotaged . | . . . . Garrisons Compromised . | . . . . Overloaded Fab Kills . | . . . . Fab Network Shutdowns . | . . . . Hacking | -11 -10 -10 -10 --------- Run | Scr Mat Min Exi Machines Accessed 1 | . 1 . . Terminals 1 | . 1 . . Fabricators . | . . . . Repair Stations . | . . . . Recycling Units . | . . . . Scanalyzers . | . . . . Garrison Access . | . . . . Total Hacks 1 | . 1 . . Successful 1 | . 1 . . Failed . | . . . . Catastrophic . | . . . . Database Lockouts . | . . . . Manual . | . . . . Terminals 1 | . 1 . . Fabricators . | . . . . Repair Stations . | . . . . Recycling Units . | . . . . Scanalyzers . | . . . . Garrison Access . | . . . . Terminal Hacks 1 | . 1 . . Transport Status 1 | . 1 . . Fabricator Hacks . | . . . . Repair Station Hacks . | . . . . Recycling Unit Hacks . | . . . . Scanalyzer . | . . . . Garrison Access Hacks . | . . . . Unauthorized Hacks . | . . . . Terminals . | . . . . Fabricators . | . . . . Repair Stations . | . . . . Recycling Units . | . . . . Scanalyzers . | . . . . Garrison Access . | . . . . Data Cores Recovered . | . . . . Used . | . . . . Hacking Detections . | . . . . Full Trace Events . | . . . . Feedback Events . | . . . . Feedback Blocked . | . . . . Robot Schematics Acquired . | . . . . Robots Built . | . . . . Matter . | . . . . Time . | . . . . Total Robot Build Rating . | . . . . Part Schematics Acquired . | . . . . Parts Built . | . . . . Matter . | . . . . Time . | . . . . Total Part Build Rating . | . . . . Parts Repaired . | . . . . Time . | . . . . Parts Recycled . | . . . . Recycled Matter . | . . . . Retrieved Matter . | . . . . Retrieved Components . | . . . . Parts Scanalyzed . | . . . . Part Schematics Acquired . | . . . . Parts Damaged . | . . . . Bothacking | -11 -10 -10 -10 ------------ Run | Scr Mat Min Exi Used RIF Installer . | . . . . Robots Hacked . | . . . . Non-combat . | . . . . Combat . | . . . . Robot Hacks Applied . | . . . . Relay Couplers Released . | . . . . Robots Rewired . | . . . . Allies Hacked . | . . . . Hacks Repelled . | . . . . Allies | -11 -10 -10 -10 -------- Run | Scr Mat Min Exi Total Allies 3 | . . 3 . Largest Group 3 | . . 3 3 Highest-Rated Group 40 | . . 40 40 Highest-Rated Ally 16 | . . 16 16 Total Orders . | . . . . Ally Attacks 37 | . . . 37 Total Damage 354 | . . . 354 Kills 8 | . . . 8 Allies Corrupted . | . . . . Allies Melted . | . . . . Intel | -11 -10 -10 -10 ------- Run | Scr Mat Min Exi Robot Analysis Total . | . . . . Derelict Logs Recovered . | . . . . Drone Launches . | . . . . Drone Recoveries . | . . . . Exploration | -11 -10 -10 -10 ------------- Run | Scr Mat Min Exi Turns Passed 881 | 70 233 243 335 Spaces Moved 631 | 53 156 183 239 Core 17 | 17 . . . Treads . | . . . . Legs 614 | 36 156 183 239 Wheels . | . . . . Hover . | . . . . Flight . | . . . . Fastest Speed 50 | 50 120 120 120 Average Speed 119 | 108 120 120 121 Slowest Speed 150 | 150 120 120 150 Overloaded Moves . | . . . . Propulsion Burnouts . | . . . . Robots Hopped . | . . . . Cave-ins Triggered . | . . . . Exploration Rate (%) 37 | 5 32 44 67 Regions Visited 3 Branch Regions 2 Pre-discovered Areas . | . . . . Known Exits Taken 3 | 1 1 1 . Unknown Exits Taken . | . . . . Scrap Searched . | . . . . Spaces Dug . | . . . . Terrain Destroyed . | . . . . Melee . | . . . . Projectile . | . . . . AOE . | . . . . Terrain Rammed . | . . . . Walls Destroyed . | . . . . Machines Disabled . | . . . . Actions | -11 -10 -10 -10 --------- Run | Scr Mat Min Exi Total 722 | 65 187 206 264 Wait 36 | . 15 21 . Move 628 | 52 155 182 239 Hop . | . . . . Pick Up 16 | 8 4 1 3 Fast Attach 1 | . . . 1 Attach 11 | 5 3 . 3 Detach . | . . . . Swap 8 | . 3 1 4 Drop 3 | . . 1 2 Fire 18 | . 7 . 11 Melee . | . . . . Ram . | . . . . Kick 1 | . . . 1 Crush . | . . . . Escape Stasis . | . . . . Rewire . | . . . . Trap . | . . . . Miscellaneous . | . . . . Route ------- -11/Scrapyard -10/Materials -10/Mines (discovered 3 exits: *Mat x2 / *Exi) -10/Exiles (discovered 1 exit: *Min) History --------- Turn | Location | Event 2 | -11/Scrapyard | Met Revision 17 4 | -11/Scrapyard | Identified exit to Materials 4 | -11/Scrapyard | Discovered exit to Materials (range 15) 71 | -11/Scrapyard | Entered Materials 71 | -10/Materials | Evolved 1 slot: Power x1 277 | -10/Materials | Identified exit to Mines 277 | -10/Materials | Discovered exit to Mines (range 13) 304 | -10/Materials | Entered Mines 312 | -10/Mines | Met a Derelict bent on vengeance 314 | -10/Mines | Build established: Hacker-Mutant 384 | -10/Mines | Identified exit to Materials 384 | -10/Mines | Discovered exit to Materials (range 8) 441 | -10/Mines | Discovered exit to Materials (range 8) 451 | -10/Mines | Assisted by bots powering up and referring to "LRC-V3" 516 | -10/Mines | Found a damaged Exp. Sensor Array with a note attached 519 | -10/Mines | Found Prototype Device 520 | -10/Mines | Identified Exp. Sensor Array 532 | -10/Mines | Deemed a non-threat by the Exiles lab entrance 532 | -10/Mines | Identified exit to Exiles 532 | -10/Mines | Discovered exit to Exiles (range 5) 547 | -10/Mines | Entered Exiles 547 | -10/Exiles | Accompanied by 3 allies 582 | -10/Exiles | Identified exit to Mines 582 | -10/Exiles | Discovered exit to Mines (range 14) 615 | -10/Exiles | Met 8R-AWN 634 | -10/Exiles | Met EX-HEX 671 | -10/Exiles | Met EX-BIN 706 | -10/Exiles | Met EX-DEC 746 | -10/Exiles | Visited The Gauntlet 792 | -10/Exiles | Attacked by the Exiles 870 | -10/Exiles | Core integrity fell below 50% 879 | -10/Exiles | Core integrity fell below 20% 882 | -10/Exiles | Destroyed by 8R-AWN with 8R-AWN's Boregun Last Messages --------------- 00873_ Penetrated by HV Slug. 00874_ AV-5BG(z) overheating. 00876_ AV-5BG(z) heat spikes uncontrollably. 00876_ Penetrated by HV Slug. 00876_ HV Slug penetrates Machine. 00876_ Sml. Laser destroyed. 00877_ AV-5BG(z) heat damages core (-2). 00877_ AV-5BG(z) overheating. 00878_ Penetrated by HV Slug. 00878_ Imp. Heat Sink destroyed. 00878_ Penetrated by HV Slug. 00878_ AV-5BG(z) overheating. 00880_ Penetrated by HV Slug. 00880_ Critical hit. 00880_ Ion Engine destroyed. 00880_ HV Slug penetrates Machine. 00880_ Machine disabled. 00880_ HV Slug penetrates Machine. 00881_ AV-5BG(z) overheating. 00882_ Penetrated by HV Slug. Map ----- +----------------------------------------------------+ | ???????????????????????????#" " | | ???????????????????????????#"""" ""# | | ???????????????????????????#"" ""### | | ???????????????????????????#" """"##?? | | ???????????????????????????#""" """#??? | | ???????????????????????????## ""##??? | | ????????????????????????????#"" """##???? | | ????????????????????????????##""" ##????? | | ?????????????????????????????##"""" ##?????? | | ??????????????????????????????### #??????? | | ????????????????????????????????##### ##??????? | | ????????????????????????????????????## #???????? | | ?????????????????????????????????????# #???????? | | ?????????????????????????????????????# #???????? | | ?????????????????????????????????????# #???????? | | ??????#####?????????????????###??????# #???????? | | ????#""""""??????""""""???#"""""?????# #???????? | | ?????"" "????#"""""""????"""""""???# #???????? | | ????#" ????"""""" "#??#" """"#??# #???????? | | ?????"" "?#""#""" """????"" """???# #???????? | | ?????"" "?#""#"" ""????"" ""???# #???????? | | #######"""###""###"""########"""###### ########? | | """" "" """"""" """" """ " "" """""""#? | | " """""" " " g "#" | | """ % * c% c " | | """" =* ==%!%% @ " | | "" % ! % a z " | | """ " ! "" #" | | "" """ """""" % " """"" " """" """""#? | | #######"""########"""###""###"""########"""######? | | ?????"" "?????"" ""#""#"" ""?????? ""????? | | ????#""" ""????#""" ""#""#""" ""?????? """#???? | | ????#" """ ????#" """"""""#" " "#?????"""""#???? | | ?????""""""????#"""""""????"""""""?????? """"#???? | | ??????"""?"????#"""""""????"""""""#?????""""?????? | | ??????????????????#"##???????##?#????????#???????? | | ?????????????????????????????????????????????????? | | ?????????????????????????????????????????????????? | | ?????????????????????????????????????????????????? | | ?????????????????????????????????????????????????? | | | | | | | | | | | | | | | | | | | | | +----------------------------------------------------+ Best States ------------- Heat Dissipation 39 Energy Generation 24 Energy Capacity 310 Matter Stores 300 Matter Capacity 300 Sight Range 18 Robot Scan Range 30 Terrain Scan Range 14 Terrain Scan Density 10 Resistance: KI 35 Resistance: TH 35 Resistance: EX 35 Resistance: EM 35 Resistance: I 35 Resistance: S 35 Resistance: P 35 Power Shielding 33 Evasion (%) 40 Offensive Hacking 20 Item Schematics ----------------- None Robot Schematics ------------------ None Fabricated ------------ Nothing Alien Tech Used ----------------- None Achievements -------------- None Challenges ------------ None Game ------ Seed AutogunDynamicReconstructor Manual? 0 Play Time 00:12:40 Cumulative 107.5 hours Start 2020.10.15 @ 17:44:53 End 2020.10.15 @ 18:02:20 Sessions 1 Manual Loads 0 Difficulty Explorer Special Mode None Game No. 144 Rogue 102 Adventurer 2 Explorer 40 Win Type - Total 1 Types 1/0/0/0/0/0/0/0/0 Lore% 24 Gallery% 53 Achievement% 40 Wizard Run 0 Options --------- ASCII 0 Keyboard 0 Movement Mouse Keybinds 0 Fullscreen 1 Font 12/Terminus Map View 83x54 Tactical HUD 1 Map Filters NONE Filters NONE Steam 1 RUN: f2584039-9468-4f35-88a8-b52f947e84d9